fUSD/lending_fUSD_20250602
["ID","MTS","AMOUNT","RATE_DAILY","PERIOD"]
[363706837,1748831432103,-420.0,0.00019178,2]
[363706838,1748831432114,-421.510884,0.00019178,2]
[363706839,1748831432124,-423.03140144,0.00019178,2]
[363706840,1748831432134,-427.36814644,0.00019178,2]
[363706841,1748831432144,-420.0,0.00019178,2]
[363706842,1748831432154,-469.66057854,0.00019178,2]
[363706843,1748831432164,-429.49402799,0.00019178,2]
[363706844,1748831432174,-420.0,0.00019178,2]
[363706845,1748831432183,-1699.37,0.00019178,2]
[363706846,1748831432192,-420.0,0.00019178,2]
[363706847,1748831432202,-420.0,0.00019178,2]
[363706848,1748831432212,-420.0,0.00019178,2]
[363706849,1748831432222,-248.93097101,0.00019178,2]
[363706850,1748831432234,-171.06902899,0.00019178,2]
[363706851,1748831432245,-609.12,0.00019178,2]
[363706852,1748831432254,-420.0,0.00019178,2]
[363706853,1748831432263,-420.0,0.00019178,2]
[363706854,1748831432271,-508.7158344,0.00019178,2]
[363706855,1748831432278,-420.0,0.00019178,2]
[363706856,1748831432286,-589.4,0.00019178,2]
[363706857,1748831432298,-420.0,0.00019178,2]
[363706858,1748831432305,-420.0,0.00019178,2]
[363706859,1748831432313,-272.74245052,0.00019178,2]
[363706860,1748831432320,-173.25,0.00019178,2]
[363706861,1748831432327,-510.09,0.00019276,2]
[363706862,1748831432334,-420.0,0.00019315,2]
[363706863,1748831432341,-420.0,0.00019315,2]
[363706864,1748831432348,-420.0,0.00019315,2]
[363706865,1748831432355,-420.0,0.00019315,2]
[363706866,1748831432365,-1699.37,0.00019315,2]
[363706869,1748831432376,-420.0,0.00019315,2]
[363706870,1748831432386,-420.0,0.00019315,2]
[363706871,1748831432396,-439.35078028,0.00019315,2]
[363706872,1748831432405,-494.22693261,0.00019315,2]
[363706873,1748831432415,-609.12,0.00019315,2]
[363706875,1748831432424,-420.0,0.00019315,2]
[363706877,1748831432434,-394.52311968,0.00019315,2]
[363706879,1748831432444,-420.0,0.00019315,2]
[363706881,1748831432453,-589.4,0.00019315,2]
[363706883,1748831432464,-420.0,0.00019315,2]
[363706885,1748831432473,-423.80426172,0.00019315,2]
[363706887,1748831432483,-172.67,0.00019435,2]
[363706889,1748831432493,-420.0,0.00019452,2]
[363706892,1748831432503,-420.0,0.00019452,2]
[363706894,1748831432512,-420.0,0.00019452,2]
[363706896,1748831432522,-420.0,0.00019452,2]
[363706898,1748831432531,-1699.37,0.00019452,2]
[363706900,1748831432544,-420.0,0.00019452,2]
[363706902,1748831432554,-420.0,0.00019452,2]
[363706904,1748831432563,-609.12,0.00019452,2]
[363706906,1748831432573,-420.0,0.00019452,2]
[363706908,1748831432582,-420.0,0.00019452,2]
[363706910,1748831432591,-589.4,0.00019452,2]
[363706912,1748831432601,-420.0,0.00019452,2]
[363706914,1748831432610,-420.0,0.00019589,2]
[363706916,1748831432619,-420.0,0.00019589,2]
[363706918,1748831432629,-420.0,0.00019589,2]
[363706920,1748831432639,-420.0,0.00019589,2]
[363706923,1748831432650,-1407.99964824,0.00019589,2]
[363706929,1748831432702,-291.37035176,0.00019589,2]
[363706930,1748831432712,-551.77229382,0.00019589,2]
[363706931,1748831432722,-420.0,0.00019589,2]
[363706932,1748831432731,-609.12,0.00019589,2]
[363706934,1748831432740,-420.0,0.00019589,2]
[363706935,1748831432750,-420.0,0.00019589,2]
[363706936,1748831432760,-589.4,0.00019589,2]
[363706937,1748831432770,-420.0,0.00019589,2]
[363706939,1748831432780,-969.647436,0.00019599,2]
[363706941,1748831432791,-353.99,0.000196,2]
[363706943,1748831432801,-353.99,0.000196,2]
[363706945,1748831432810,-420.0,0.00019726,2]
[363706947,1748831432820,-420.0,0.00019726,2]
[363706948,1748831432829,-420.0,0.00019726,2]
[363706949,1748831432838,-420.0,0.00019726,2]
[363706950,1748831432848,-1699.37,0.00019726,2]
[363706951,1748831432857,-14.30026633,0.00019726,2]
[363706952,1748831432868,-405.69973367,0.00019726,2]
[363706953,1748831432877,-609.12,0.00019726,2]
[363706954,1748831432887,-420.0,0.00019726,2]
[363706955,1748831432897,-420.0,0.00019726,2]
[363706956,1748831432906,-589.4,0.00019726,2]
[363706957,1748831432923,-30.78026633,0.00019726,2]
[363706960,1748831438192,-277.57103379,0.00019726,2]
[363706961,1748831438204,-111.64869988,0.00019726,2]
[363706962,1748831438214,-420.0,0.00019863,2]
[363706963,1748831438224,-420.0,0.00019863,2]
[363706964,1748831438234,-420.0,0.00019863,2]
[363706965,1748831438244,-272.41684373,0.00019863,2]
[363706966,1748831438254,-1699.37,0.00019863,2]
[363706967,1748831438269,-420.0,0.00019863,2]
[363706968,1748831438279,-609.12,0.00019863,2]
[363706969,1748831438290,-420.0,0.00019863,2]
[363706970,1748831438301,-198.55102238,0.00019863,2]
[363706971,1748831438407,-221.44897762,0.00019863,2]
[363706972,1748831438417,-589.4,0.00019863,2]
[363706973,1748831438427,-420.0,0.00019863,2]
[363706974,1748831438437,-151.0,0.00019888,2]
[363706975,1748831438448,-157.809,0.0001989,2]
[363706976,1748831438459,-2422.04,0.0001989,2]
[363706978,1748831438468,-256.99025503,0.00019895,2]
[363706980,1748831438478,-271.4441,0.00019896,2]
[363706982,1748831438487,-7683.02602233,0.000199,2]
[363706984,1748831438499,-4816.97397767,0.000199,2]
[363706986,1748831438508,-523.46851618,0.000199,2]
[363706988,1748831438518,-6090.51087597,0.000199,2]
[363706990,1748831438527,-353.99,0.00019959,2]
[363706992,1748831438536,-353.99,0.00019959,2]
[363706994,1748831438545,-707.98,0.00019959,2]
[363706996,1748831438554,-353.99,0.00019959,2]
[363706997,1748831438564,-525.8,0.00019959,2]
[363706999,1748831438574,-707.98,0.00019959,2]
[363707001,1748831438585,-707.63,0.00019959,2]
[363707004,1748831438597,-707.98,0.00019959,2]
[363707005,1748831438608,-500.0,0.00019973,2]
[363707008,1748831438617,-500.0,0.00019973,2]
[363707010,1748831438628,-500.0,0.00019973,2]
[363707012,1748831438638,-500.0,0.00019973,2]
[363707014,1748831438648,-500.0,0.00019973,2]
[363707015,1748831438657,-500.0,0.00019973,2]
[363707017,1748831438667,-63229.03035659,0.0001999,2]
[363707167,1748831440094,-186160.1944861,0.0001999,2]
[363707169,1748831440104,-22929.42818354,0.00019991,2]
[363707171,1748831440115,-297.43750599,0.00019995,2]
[363707173,1748831440124,-415.85062451,0.00019995,2]
[363707175,1748831440133,-107804.7024845,0.00019996,2]
[363707177,1748831440143,-8191.8654083,0.00019996,2]
[363707179,1748831440152,-23161.9699623,0.00019996,2]
[363707181,1748831440162,-8913.4167612,0.00019996,2]
[363707183,1748831440172,-5073.0623426,0.00019996,2]
[363707185,1748831440181,-5106.7702749,0.00019996,2]
[363707187,1748831440191,-196.33091459,0.00019998,2]
[363707189,1748831440201,-5202.25,0.00019998,2]
[363707191,1748831440211,-1864.44769305,0.00019999,2]
[363707193,1748831440221,-358140.33806706,0.00019999,2]
[363707196,1748831440232,-4644.72668471,0.00019999,2]
[363707198,1748831440245,-2166.50767031,0.00019999,2]
[363707200,1748831440259,-3470.53647137,0.00019999,2]
[363707213,1748831440367,-41356.0,0.00019999,2]
[363707498,1748831446691,-4202.6,0.00019996,2]
[363707508,1748831507401,4694.11,0.00023,30]
[363707509,1748831543586,459.08,0.00017078,2]
[363707511,1748831614996,332.84,0.00013699,2]
[363707512,1748831700642,234.89,0.00018906,2]
[363707513,1748831812221,204.0,0.000189,2]
[363707514,1748831812692,204.0,0.0001855,2]
[363707515,1748831813002,204.0,0.0001821,2]
[363707516,1748831813305,204.0,0.0001787,2]
[363707517,1748831813802,204.0,0.0001753,2]
[363707519,1748831869895,468.0,0.00024,120]
[363707520,1748832195685,150.0,0.00018732,7]
[363707546,1748832255111,1000.0,0.00018722,2]
[363707547,1748832388914,228.87,0.00018722,2]
[363707548,1748832581848,330.05,0.00013699,2]
[363707550,1748832589015,207.75,0.00018699,2]
[363707552,1748832632267,-151.25856929,0.00019166,2]
[363707553,1748832632277,-207.4,0.00019166,2]
[363707554,1748832632287,-400.0,0.00019168,2]
[363707555,1748832632297,-250.0,0.00019169,2]
[363707556,1748832632306,-400.0,0.00019172,2]
[363707557,1748832632316,-1200.0,0.00019177,2]
[363707558,1748832632327,-466.14290879,0.00019178,2]
[363707559,1748832632339,-420.0,0.00019178,2]
[363707560,1748832632349,-420.0,0.00019178,2]
[363707561,1748832632359,-424.00867306,0.00019178,2]
[363707562,1748832632369,-420.40034678,0.00019178,2]
[363707563,1748832632378,-438.09287337,0.00019178,2]
[363707564,1748832632388,-355.0683032,0.00019178,2]
[363707565,1748832632397,-420.0,0.00019178,2]
[363707566,1748832632407,-448.42330894,0.00019178,2]
[363707567,1748832632417,-397.05319405,0.00019178,2]
[363707568,1748832632427,-527.3,0.00019178,2]
[363707569,1748832632438,-420.0,0.00019178,2]
[363707570,1748832632447,-420.0,0.00019178,2]
[363707571,1748832632458,-552.34,0.00019178,2]
[363707572,1748832632467,-420.0,0.00019178,2]
[363707573,1748832632477,-420.0,0.00019178,2]
[363707574,1748832632486,-500.0,0.00019178,2]
[363707575,1748832632495,-394.35722475,0.00019178,2]
[363707576,1748832632504,-45.15459777,0.00019178,2]
[363707577,1748832632518,-374.84540223,0.00019178,2]
[363707578,1748832632527,-420.0,0.00019178,2]
[363707579,1748832632537,-420.0,0.00019178,2]
[363707580,1748832632546,-428.52,0.00019178,2]
[363707581,1748832632555,-485.29191479,0.00019178,2]
[363707582,1748832632564,-73.74268346,0.00019178,2]
[363707583,1748832632575,-346.25731654,0.00019178,2]
[363707584,1748832632590,-420.0,0.00019178,2]
[363707586,1748832632600,-494.79282236,0.00019178,2]
[363707588,1748832632610,-437.66593127,0.00019178,2]
[363707590,1748832632620,-420.0,0.00019178,2]
[363707592,1748832632629,-499.28020359,0.00019178,2]
[363707594,1748832632638,-461.08667877,0.00019178,2]
[363707596,1748832632647,-502.20237583,0.00019178,2]
[363707598,1748832632656,-459.37538434,0.00019178,2]
[363707599,1748832632665,-481.06199102,0.00019178,2]
[363707601,1748832632675,-420.0,0.00019178,2]
[363707602,1748832632684,-461.45165654,0.00019178,2]
[363707603,1748832632694,-458.15325486,0.00019178,2]
[363707604,1748832632704,-420.0,0.00019178,2]
[363707605,1748832632713,-1606.74,0.00019178,2]
[363707606,1748832632723,-458.46782585,0.00019178,2]
[363707607,1748832632732,-457.489975,0.00019178,2]
[363707608,1748832632742,-420.0,0.00019178,2]
[363707609,1748832632753,-449.90956942,0.00019178,2]
[363707610,1748832632768,-420.0,0.00019178,2]
[363707611,1748832632778,-153.43798821,0.00019178,2]
[363707612,1748832632787,-500.0,0.00019178,2]
[363707613,1748832632798,-454.95773087,0.00019178,2]
[363707614,1748832632807,-537.1466233,0.00019178,2]
[363707616,1748832632817,-526.16007455,0.00019178,2]
[363707618,1748832632828,-506.6560403,0.00019178,2]
[363707620,1748832632837,-467.44111945,0.00019178,2]
[363707622,1748832632847,-483.24431026,0.00019178,2]
[363707624,1748832632856,-55.11587226,0.00019178,2]
[363707635,1748832632964,-364.88412774,0.00019178,2]
[363707637,1748832632974,-97.4466911,0.00019178,2]
[363707795,1748832638565,-322.5533089,0.00019178,2]
[363707796,1748832638575,-50.32472215,0.00019178,2]
[363707797,1748832638591,-439.49130327,0.00019178,2]
[363707798,1748832638602,-420.0,0.00019178,2]
[363707799,1748832638613,-533.8192533,0.00019178,2]
[363707800,1748832638623,-316.58286854,0.00019178,2]
[363707801,1748832638635,-129.08103807,0.00019178,2]
[363707802,1748832638645,-420.0,0.00019178,2]
[363707803,1748832638655,-443.28418994,0.00019178,2]
[363707804,1748832638665,-518.67083608,0.00019178,2]
[363707805,1748832638676,-420.0,0.00019178,2]
[363707806,1748832638687,-535.4864864,0.00019178,2]
[363707807,1748832638697,-454.99,0.00019178,2]
[363707808,1748832638706,-420.0,0.00019178,2]
[363707809,1748832638717,-420.0,0.00019178,2]
[363707810,1748832638727,-442.87377601,0.00019178,2]
[363707811,1748832638736,-420.0,0.00019178,2]
[363707812,1748832638748,-420.0,0.00019178,2]
[363707833,1748832638971,-481.11365354,0.00019178,2]
[363707836,1748832638997,-467.15183999,0.00019178,2]
[363707838,1748832639006,-420.0,0.00019178,2]
[363707840,1748832639016,-521.70306105,0.00019178,2]
[363707842,1748832639026,-469.45591032,0.00019178,2]
[363707844,1748832639035,-420.0,0.00019178,2]
[363707846,1748832639045,-596.68,0.00019178,2]
[363707848,1748832639055,-239.6760306,0.00019178,2]
[363707850,1748832639065,-530.11762092,0.00019178,2]
[363707852,1748832639074,-533.98154455,0.00019178,2]
[363707854,1748832639087,-455.0642243,0.00019178,2]
[363707856,1748832639096,-369.37920652,0.00019178,2]
[363707858,1748832639109,-126.62079348,0.00019178,2]
[363707860,1748832639118,-522.27376424,0.00019178,2]
[363707862,1748832639128,-487.91,0.00019178,2]
[363707864,1748832639138,-420.0,0.00019178,2]
[363707866,1748832639147,-420.0,0.00019178,2]
[363707868,1748832639158,-420.0,0.00019178,2]
[363707870,1748832639169,-420.0,0.00019178,2]
[363707872,1748832639179,-420.0,0.00019178,2]
[363707874,1748832639189,-156.85036926,0.00019178,2]
[363707876,1748832639201,-392.71963074,0.00019178,2]
[363707878,1748832639211,-420.0,0.00019178,2]
[363707880,1748832639224,-420.0,0.00019178,2]
[363707882,1748832639234,-420.0,0.00019178,2]
[363707884,1748832639245,-469.00274007,0.00019178,2]
[363707886,1748832639255,-420.0,0.00019178,2]
[363707888,1748832639266,-437.46777545,0.00019178,2]
[363707890,1748832639277,-150.0,0.00019178,2]
[363707892,1748832639288,-454.40782747,0.00019178,2]
[363707894,1748832639300,-455.04436815,0.00019178,2]
[363707896,1748832639312,-500.0,0.00019178,2]
[363707898,1748832639323,-151.0,0.00019178,2]
[363707900,1748832639333,-176.36,0.00019178,2]
[363707902,1748832639356,-500.0,0.00019205,2]
[363707904,1748832639367,-500.0,0.00019205,2]
[363707906,1748832639382,-150.0,0.00019205,2]
[363707909,1748832639394,-287.99765812,0.00019233,2]
[363707995,1748832640302,-237.80024102,0.00019233,2]
[363707997,1748832640314,-517.43420617,0.00019233,2]
[363707999,1748832640324,-156.99664597,0.00019233,2]
[363708001,1748832640335,-204.0,0.0001924,2]
[363708003,1748832640351,-500.0,0.00019252,2]
[363708005,1748832640364,-420.0,0.00019315,2]
[363708007,1748832640375,-420.0,0.00019315,2]
[363708009,1748832640384,-420.0,0.00019315,2]
[363708011,1748832640394,-420.0,0.00019315,2]
[363708013,1748832640405,-420.0,0.00019315,2]
[363708015,1748832640415,-1606.74,0.00019315,2]
[363708017,1748832640425,-236.98,0.00019315,2]
[363708019,1748832640435,-420.0,0.00019315,2]
[363708021,1748832640446,-420.0,0.00019315,2]
[363708023,1748832640456,-420.0,0.00019315,2]
[363708025,1748832640466,-420.0,0.00019315,2]
[363708027,1748832640476,-365.94,0.00019315,2]
[363708029,1748832640486,-429.18,0.00019315,2]
[363708031,1748832640496,-443.88022786,0.00019315,2]
[363708033,1748832640506,-596.68,0.00019315,2]
[363708035,1748832640516,-222.03546716,0.00019315,2]
[363708037,1748832640526,-242.43,0.00019315,2]
[363708039,1748832640536,-549.57,0.00019315,2]
[363708041,1748832640545,-150.82,0.00019315,2]
[363708043,1748832640556,-420.0,0.00019315,2]
[363708045,1748832640566,-420.0,0.00019315,2]
[363708047,1748832640576,-459.08,0.00019342,2]
[363708049,1748832640591,-420.0,0.00019452,2]
[363708051,1748832640603,-420.0,0.00019452,2]
[363708053,1748832640613,-420.0,0.00019452,2]
[363708055,1748832640623,-420.0,0.00019452,2]
[363708058,1748832640632,-377.49,0.00019452,2]
[363708059,1748832640641,-1606.74,0.00019452,2]
[363708061,1748832640651,-241.68,0.00019452,2]
[363708063,1748832640661,-420.0,0.00019452,2]
[363708066,1748832640671,-284.07275002,0.00019452,2]
[363708068,1748832640681,-420.0,0.00019452,2]
[363708070,1748832640691,-596.68,0.00019452,2]
[363708072,1748832640700,-549.57,0.00019452,2]
[363708075,1748832640711,-313.59,0.00019452,2]
[363708076,1748832640720,-420.0,0.00019452,2]
[363708078,1748832640730,-204.0,0.0001958,2]
[363708080,1748832640740,-420.0,0.00019589,2]
[363708082,1748832640749,-420.0,0.00019589,2]
[363708084,1748832640759,-420.0,0.00019589,2]
[363708086,1748832640769,-420.0,0.00019589,2]
[363708088,1748832640778,-1606.74,0.00019589,2]
[363708090,1748832640789,-420.0,0.00019589,2]
[363708091,1748832640799,-420.0,0.00019589,2]
[363708093,1748832640808,-596.68,0.00019589,2]
[363708095,1748832640818,-549.57,0.00019589,2]
[363708097,1748832640828,-420.0,0.00019589,2]
[363708099,1748832640839,-872.682692,0.00019599,2]
[363708101,1748832640849,-1161.54,0.000197,2]
[363708102,1748832640860,-340.54,0.000197,2]
[363708104,1748832640870,-150.0,0.000197,2]
[363708106,1748832640880,-150.0,0.000197,2]
[363708108,1748832640891,-150.22,0.000197,2]
[363708110,1748832640900,-13149.77737056,0.000197,2]
[363708112,1748832640911,-420.0,0.00019726,2]
[363708114,1748832640920,-420.0,0.00019726,2]
[363708116,1748832640930,-420.0,0.00019726,2]
[363708118,1748832640939,-420.0,0.00019726,2]
[363708120,1748832640948,-1606.74,0.00019726,2]
[363708122,1748832640958,-420.0,0.00019726,2]
[363708124,1748832640967,-420.0,0.00019726,2]
[363708126,1748832640977,-596.68,0.00019726,2]
[363708128,1748832640987,-549.57,0.00019726,2]
[363708130,1748832640996,-420.0,0.00019726,2]
[363708132,1748832641005,-208.0,0.00019728,2]
[363708134,1748832641015,-420.0,0.00019863,2]
[363708136,1748832641025,-420.0,0.00019863,2]
[363708138,1748832641034,-420.0,0.00019863,2]
[363708140,1748832641044,-154.68,0.00019863,2]
[363708142,1748832641054,-1606.74,0.00019863,2]
[363708144,1748832641063,-420.0,0.00019863,2]
[363708146,1748832641073,-420.0,0.00019863,2]
[363708148,1748832641082,-596.68,0.00019863,2]
[363708150,1748832641096,-549.57,0.00019863,2]
[363708152,1748832641106,-420.0,0.00019863,2]
[363708154,1748832641116,-12500.0,0.00019865,2]
[363708156,1748832641125,-12500.0,0.00019874,2]
[363708158,1748832641135,-12500.0,0.00019882,2]
[363708160,1748832641144,-12500.0,0.00019891,2]
[363708162,1748832641154,-157.809,0.00019899,2]
[363708164,1748832641163,-1937.632,0.00019899,2]
[363708166,1748832641172,-12500.0,0.000199,2]
[363708168,1748832641182,-12500.0,0.000199,2]
[363708170,1748832641192,-5894.19179138,0.000199,2]
[363708172,1748832641202,-348.9790108,0.000199,2]
[363708174,1748832641211,-204.0,0.0001992,2]
[363708175,1748832641221,-356.6,0.00019947,7]
[363708178,1748832641231,-353.99,0.00019959,2]
[363708180,1748832641240,-500.0,0.00019973,2]
[363708182,1748832641250,-335.06572953,0.00019973,2]
[363708184,1748832641260,-500.0,0.00019973,2]
[363708186,1748832641272,-500.0,0.00019973,2]
[363708188,1748832641281,-500.0,0.00019973,2]
[363708190,1748832641291,-500.0,0.00019973,2]
[363708192,1748832641302,-1060.16282146,0.00019995,2]
[363708194,1748832641312,-297.43750599,0.00019995,2]
[363708196,1748832641322,-500.0,0.00019995,2]
[363708198,1748832641332,-415.85062451,0.00019995,2]
[363708200,1748832641347,-7936.9810287,0.00019996,2]
[363708202,1748832641358,-78738.5430678,0.00019996,2]
[363708204,1748832641368,-17503.8901934,0.00019996,2]
[363708206,1748832641379,-11145.1014372,0.00019996,2]
[363708208,1748832641390,-518.94985016,0.00019996,2]
[363708210,1748832641400,-2290.29345963,0.00019996,2]
[363708212,1748832641410,-265223.16491768,0.00019996,2]
[363708215,1748832641423,-1440.0,0.00019996,2]
[363708217,1748832641438,-1004.14576077,0.00019996,2]
[363708219,1748832641453,-1705.0000004,0.00019996,2]
[363708400,1748832643342,-555346.89731397,0.00019996,2]
[363708406,1748832643394,-705.82929591,0.00019996,2]
[363708413,1748832643447,-1257.0,0.00019996,2]
[363708463,1748832646369,-1401.01115992,0.00019996,2]
[363708464,1748832646423,-768.84601034,0.00019996,2]
[363708465,1748832646476,-3092.42324497,0.00019996,2]
[363708466,1748832646487,-1272.60107516,0.00019996,2]
[363708467,1748832646499,-2744.14314937,0.00019996,2]
[363708468,1748832646584,-792190.53435212,0.00019996,2]
[363708469,1748832646638,-1376.58893743,0.00019996,2]
[363708476,1748832863616,454.33,0.00017103,2]
[363708477,1748832888316,551.32,0.00019001,2]
[363708478,1748832950899,250.0,0.00019001,2]
[363708479,1748832974730,171.58,0.00024,120]
[363708480,1748833028061,11899.75,0.00019001,2]
[363708482,1748833426106,1000.0,0.00018882,2]
[363708483,1748833615398,325.04,0.00013699,2]
[363708485,1748833637810,439.82,0.00018894,2]
[363708486,1748833643553,201.21440067,0.000188,2]
[363708490,1748833831435,-150.0,0.00019006,2]
[363708491,1748833831445,-400.0,0.00019046,2]
[363708492,1748833831454,-400.0,0.00019086,2]
[363708493,1748833831463,-207.4,0.00019166,2]
[363708494,1748833831472,-300.0,0.00019177,2]
[363708495,1748833831481,-425.0,0.00019177,2]
[363708496,1748833831491,-1200.0,0.00019177,2]
[363708497,1748833831500,-420.0,0.00019178,2]
[363708498,1748833831509,-420.0,0.00019178,2]
[363708499,1748833831518,-420.0,0.00019178,2]
[363708500,1748833831527,-420.0,0.00019178,2]
[363708501,1748833831536,-391.64720859,0.00019178,2]
[363708502,1748833831547,-1205.05,0.00019178,2]
[363708503,1748833831556,-459.42345618,0.00019178,2]
[363708504,1748833831565,-420.0,0.00019178,2]
[363708505,1748833831575,-447.51,0.00019178,2]
[363708506,1748833831584,-420.0,0.00019178,2]
[363708507,1748833831593,-420.0,0.00019178,2]
[363708508,1748833831603,-500.0,0.00019212,2]
[363708509,1748833831612,-965.52226392,0.000193,2]
[363708510,1748833831621,-420.0,0.00019315,2]
[363708511,1748833831630,-420.0,0.00019315,2]
[363708512,1748833831639,-420.0,0.00019315,2]
[363708513,1748833831648,-420.0,0.00019315,2]
[363708514,1748833831658,-1205.05,0.00019315,2]
[363708515,1748833831667,-539.17402416,0.00019315,2]
[363708516,1748833831678,-447.51,0.00019315,2]
[363708517,1748833831688,-420.0,0.00019315,2]
[363708518,1748833831697,-420.0,0.00019315,2]
[363708519,1748833831707,-454.33,0.00019367,2]
[363708520,1748833831716,-420.0,0.00019452,2]
[363708521,1748833831726,-420.0,0.00019452,2]
[363708522,1748833831736,-420.0,0.00019452,2]
[363708523,1748833831746,-420.0,0.00019452,2]
[363708524,1748833831755,-1205.05,0.00019452,2]
[363708525,1748833831763,-447.51,0.00019452,2]
[363708526,1748833831772,-420.0,0.00019452,2]
[363708527,1748833831781,-420.0,0.00019452,2]
[363708528,1748833831792,-420.0,0.00019589,2]
[363708529,1748833831801,-420.0,0.00019589,2]
[363708530,1748833831810,-420.0,0.00019589,2]
[363708531,1748833831819,-420.0,0.00019589,2]
[363708532,1748833831828,-1205.05,0.00019589,2]
[363708533,1748833831836,-447.51,0.00019589,2]
[363708534,1748833831845,-420.0,0.00019589,2]
[363708535,1748833831855,-420.0,0.00019589,2]
[363708536,1748833831864,-460.54,0.000196,2]
[363708537,1748833831873,-460.54,0.000196,2]
[363708538,1748833831882,-460.54,0.000196,2]
[363708539,1748833831892,-460.54,0.000196,2]
[363708540,1748833831901,-460.54,0.000196,2]
[363708541,1748833831911,-460.54,0.000196,2]
[363708543,1748833831920,-460.54,0.000196,2]
[363708545,1748833831929,-460.54,0.000196,2]
[363708547,1748833831938,-353.99,0.000196,2]
[363708549,1748833831948,-460.54,0.000196,2]
[363708551,1748833831959,-460.54,0.000196,2]
[363708552,1748833831968,-460.54,0.000196,2]
[363708554,1748833831977,-13676.76,0.000197,2]
[363708556,1748833831987,-420.0,0.00019726,2]
[363708558,1748833831996,-420.0,0.00019726,2]
[363708560,1748833832006,-293.57304715,0.00019726,2]
[363708563,1748833832022,-126.42695285,0.00019726,2]
[363708565,1748833832031,-420.0,0.00019726,2]
[363708567,1748833832041,-1205.05,0.00019726,2]
[363708569,1748833832050,-447.51,0.00019726,2]
[363708571,1748833832059,-420.0,0.00019726,2]
[363708573,1748833832068,-420.0,0.00019726,2]
[363708575,1748833832077,-420.0,0.00019863,2]
[363708577,1748833832087,-420.0,0.00019863,2]
[363708579,1748833832097,-420.0,0.00019863,2]
[363708581,1748833832106,-299.0,0.00019863,2]
[363708583,1748833832115,-1205.05,0.00019863,2]
[363708585,1748833832126,-447.51,0.00019863,2]
[363708587,1748833832135,-420.0,0.00019863,2]
[363708589,1748833832145,-347.50141332,0.00019863,2]
[363708591,1748833832154,-1157.0,0.00019888,2]
[363708593,1748833832163,-175.002,0.00019889,2]
[363708595,1748833832172,-289.136,0.00019889,2]
[363708597,1748833832182,-1860.81363383,0.00019889,2]
[363708600,1748833832198,-1333.20000001,0.00019889,2]
[363708602,1748833832212,-880.98636616,0.00019889,2]
[363708604,1748833832221,-5928.28863384,0.00019889,2]
[363708606,1748833832232,-1081.71136616,0.00019889,2]
[363708608,1748833832241,-157.80975582,0.000199,2]
[363708610,1748833832250,-1550.106,0.000199,2]
[363708612,1748833832260,-1430.78277189,0.000199,2]
[363708614,1748833832270,-2000.0,0.000199,2]
[363708616,1748833832279,-5697.71873159,0.000199,2]
[363708618,1748833832289,-353.99,0.00019959,2]
[363708642,1748833832501,-286.88207253,0.00019959,2]
[363708644,1748833832516,-67.10792747,0.00019959,2]
[363708647,1748833832527,-353.99,0.00019959,2]
[363708648,1748833832537,-180.98461493,0.00019959,2]
[363708651,1748833832548,-173.00538507,0.00019959,2]
[363708653,1748833832558,-353.99,0.00019959,2]